Cogmind - Beta 11 @@@ ROGUE MODE // 2022.04.07 @ 23:56:41 Player: zkrallex Result: Self-destructed Performance ------------- Evolutions (3) 1500 Regions Visited (6) 1200 Robots Destroyed (34) 170 Value Destroyed (912) 912 Prototype IDs (3) 60 Alien Tech Used (0) 0 Bonus (25) 25 TOTAL SCORE: 3867 Bonus ------- Follower Combat Kills 35 Friendly Fire -10 Cogmind --------- Core Integrity 537/700 Matter 173/300 Energy 100/100 System Corruption 0% Temperature Cool (0) Movement Walking (120) Location -7/Factory Parts ------- > --- POWER (2) -------- (None) > --- PROPULSION (4) --- Aluminum Leg > --- UTILITY (4) ------ Improved Signal Interpreter > --- WEAPON (3) ------- (None) > --- INVENTORY (5) ---- Advanced ECM Suite Recalibrator Arc Projector Arc Projector Arc Projector Peak State ------------ > --- POWER ------------ Light Nuclear Core > --- PROPULSION ------- Aluminum Leg Aluminum Leg Carbon-fiber Leg Carbon-fiber Leg > --- UTILITY ---------- Improved Signal Interpreter Hardened Heavy Armor Plating Long-range Tractor Beam > --- WEAPON ----------- EM Shotgun Advanced Assault Cannon Advanced Assault Cannon > --- INVENTORY -------- Advanced ECM Suite Recalibrator Arc Projector Arc Projector Arc Projector [Rating: 37] Favorites ----------- Power Light Ion Engine Engine Light Ion Engine Power Core Light Nuclear Core Propulsion Aluminum Leg Treads Armored Treads Leg Aluminum Leg Utility Hardened Heavy Armor Plating Device ECM Suite Storage Small Matter Pod Processor Improved Signal Interpreter Protection Hardened Heavy Armor Plating Weapon Advanced Assault Cannon Energy Gun Small Laser Ballistic Cannon Advanced Assault Cannon Launcher Heavy Missile Launcher Build | -11 -10 -10 -10 -9 -8 -7 ------- Run | Scr Mat Min Exi Min Mat Fac Slots Evolved 6 | . . . . . 4 2 Power 1 | . . . . . . 1 Propulsion 2 | . . . . . 1 1 Utility 2 | . . . . . 2 . Weapon 1 | . . . . . 1 . Parts Attached 29 | 5 3 . 1 3 13 4 Power 5 | 1 . . 1 . 3 . Engine 4 | 1 . . 1 . 2 . Core 1 | . . . . . 1 . Reactor . | . . . . . . . Propulsion 7 | 2 . . . . 2 3 Treads 1 | . . . . . . 1 Leg 6 | 2 . . . . 2 2 Wheel . | . . . . . . . Hover . | . . . . . . . Flight . | . . . . . . . Utility 10 | . 3 . . 1 5 1 Device 6 | . 1 . . . 4 1 Storage 2 | . 2 . . . . . Processor 1 | . . . . . 1 . Hackware . | . . . . . . . Protection 1 | . . . . 1 . . Artifact . | . . . . . . . Weapon 7 | 2 . . . 2 3 . Energy Gun 3 | 2 . . . . 1 . Energy Cannon . | . . . . . . . Ballistic Gun . | . . . . . . . Ballistic Cannon 2 | . . . . 2 . . Launcher 2 | . . . . . 2 . Special Weapon . | . . . . . . . Impact Weapon . | . . . . . . . Slashing Weapon . | . . . . . . . Piercing Weapon . | . . . . . . . Special Melee Weapon . | . . . . . . . Unidentified Prototypes . | . . . . . . . Corrupted Parts 2 | . . . . . 2 . System Corruption 9 | . . . . . 9 . Parts Lost 14 | . . . . 1 4 9 Power 3 | . . . . 1 1 1 Propulsion 4 | . . . . . 1 3 Utility 3 | . . . . . 1 2 Weapon 4 | . . . . . 1 3 Highest Loss Streak 9 | . . . . 1 2 9 To Critical Strikes 1 | . . . . . . 1 Average Slot Usage (%) 80 | . 84 100 100 83 80 66 Engine 6 | . 14 14 14 5 6 . Core 1 | . . . . . . 6 Leg 25 | . 28 28 28 28 24 15 Device 6 | . 3 14 14 6 8 6 Storage 3 | . 9 14 14 6 . . Processor 2 | . . . . . 4 7 Protection 6 | . . . . 7 9 6 Energy Gun 9 | . 28 28 28 12 . 6 Ballistic Cannon 14 | . . . . 15 18 14 Launcher 2 | . . . . . 8 . Naked Turns . | . . . . . . . Heaviest Build 46 | 5 8 8 8 32 46 41 Greatest Support 40 | 20 20 20 20 20 40 35 Greatest Overweight (x) 2 | . . . . 1 2 2 Average Overweight (x) . | . . . . . 1 . Largest Inventory Capacity 5 | 5 5 5 5 5 5 5 Average Capacity 5 | 5 5 5 5 5 5 5 Most Carried 5 | 2 5 5 5 5 5 5 Average Carried 4 | . 2 5 4 4 4 4 Final Capacity 5 | 5 5 5 5 5 5 5 Final Carried 5 | . 5 5 5 5 3 5 Class Distribution -------------------- 77% | Mutant 22% | Tank Dominant Class ---------------- Mutant | -10/Materials Mutant | -10/Mines Mutant | -10/Exiles Mutant | -9/Mines Mutant | -8/Materials Tank | -7/Factory Resources | -11 -10 -10 -10 -9 -8 -7 ----------- Run | Scr Mat Min Exi Min Mat Fac Matter Collected 1270 | 250 78 . . 81 649 212 Remotely 192 | . . . . . . 192 Salvage Created 812 | 46 45 . . 50 511 160 Parts 62 | . 1 . . 6 44 11 Haulers Intercepted 1 | . . . . . 1 . Recyclers Shooed 3 | . 2 . . . 1 . Parts Field Recycled . | . . . . . . . Retrieved Matter . | . . . . . . . Parts Self-Destructed . | . . . . . . . Prevented . | . . . . . . . Kills | -11 -10 -10 -10 -9 -8 -7 ------- Run | Scr Mat Min Exi Min Mat Fac Combat Hostiles Destroyed 26 | 1 3 . . 3 15 4 Guns 7 | 1 3 . . 3 . . Cannons 11 | . . . . . 7 4 AOE 8 | . . . . . 8 . Classes Destroyed 9 | 1 1 . . 1 6 . Worker 2 | . . . . . 1 1 Builder 3 | . . . . 1 2 . Hauler 1 | . . . . . 1 . Operator 1 | . . . . . 1 . Watcher 1 | . . . . . 1 . Swarmer 11 | . 3 . . 3 4 1 Grunt 11 | 1 . . . . 7 3 Brawler 1 | . . . . . 1 . Sentry 3 | . . . . . 3 . Best Kill Streak 6 | 1 2 . . 3 6 3 Combat Bots Only 4 | 1 2 . . 3 4 3 Max Kills in Single Turn 4 | 1 1 . . 1 4 1 Gunslinging . | . . . . . . . Exploded 2 | . . . . . 2 . Melee . | . . . . . . . Uniques/NPCs Destroyed . | . . . . . . . Combat | -11 -10 -10 -10 -9 -8 -7 -------- Run | Scr Mat Min Exi Min Mat Fac Damage Taken 1752 | 22 193 . . 100 875 562 Core 244 | . 43 . . 19 19 163 Absorbed by Shields . | . . . . . . . Regen/Repaired (Parts) 38 | . . . . . 38 . Core Remaining (%) 90 | 100 . . . 75 96 . Volleys Fired 88 | 4 16 . . 17 34 17 Largest 3 | 2 2 . . 2 3 3 Hottest 141 | 80 80 . . 96 135 141 Shots Fired 196 | 8 32 . . 34 75 47 Gun 80 | 8 32 . . 26 . 14 Cannon 107 | . . . . 8 66 33 Launcher 9 | . . . . . 9 . Special . | . . . . . . . Kinetic 107 | . . . . 8 66 33 Thermal 66 | 8 32 . . 26 . . Explosive 9 | . . . . . 9 . Electromagnetic 14 | . . . . . . 14 Robot Hit Streak 7 | 3 3 . . 7 7 5 Robot Miss Streak 4 | 2 3 . . 2 4 4 Penetration Max . | . . . . . . . Secondary Targets 2 | . . . . 2 . . Max Gunslinging Chain 1 | . . . . 1 . . Shots Hit Robots 87 | 4 14 . . 12 37 20 Core Hits 45 | 2 4 . . 4 26 9 Critical Kills . | . . . . . . . Critical Parts Destroyed . | . . . . . . . Critical Strikes 1 | . . . . . 1 . Blast 1 | . . . . . 1 . Melee Attacks . | . . . . . . . Impact . | . . . . . . . Slashing . | . . . . . . . Piercing . | . . . . . . . Sneak Attacks . | . . . . . . . Combat Hostiles . | . . . . . . . Follow-up Attacks . | . . . . . . . Damage Inflicted 2748 | 56 177 . . 242 1829 444 Guns 340 | 56 174 . . 53 . 57 Cannons 1512 | . . . . 189 936 387 Explosions 893 | . . . . . 893 . Melee . | . . . . . . . Ramming 3 | . 3 . . . . . Kinetic 1512 | . . . . 189 936 387 Thermal 283 | 56 174 . . 53 . . Explosive 893 | . . . . . 893 . Electromagnetic 57 | . . . . . . 57 Impact . | . . . . . . . Slashing . | . . . . . . . Piercing . | . . . . . . . Highest Corruption 9 | . . . . . 9 . Average Corruption 7 | . . . . . 7 . Corruption Purged . | . . . . . . . Corruption Blocked . | . . . . . . . Effects 29 | . . . . . 29 . Message Errors 5 | . . . . . 5 . Matter Fused 10 | . . . . . 10 . Heat Flow Errors 6 | . . . . . 6 . Energy Discharges 1 | . . . . . 1 . Parts Rejected 1 | . . . . . 1 . Data Loss (minor) 4 | . . . . . 4 . Weapon Failures 2 | . . . . . 2 . Overload Shots . | . . . . . . . Overflow Damage 150 | . . . . 9 111 30 Projectiles 47 | . . . . 9 8 30 Explosions 103 | . . . . . 103 . Melee . | . . . . . . . Knockbacks 11 | . . . . 1 9 1 Impact . | . . . . . . . Kinetic 11 | . . . . 1 9 1 Secondary . | . . . . . . . Self-Inflicted Damage 170 | . . . . . 170 . Shots 3 | . . . . . 3 . Rammed . | . . . . . . . Targets Rammed 2 | . 1 . . . 1 . Kicked 2 | . 1 . . . 1 . Crushed . | . . . . . . . Highest Temperature 620 | 84 162 . . 102 531 620 Average Temperature 152 | 44 62 . . 44 139 321 Received Heat Transfer 348 | 12 . . . . 252 84 Effects 31 | . . . . . 3 28 Shutdowns 3 | . . . . . 2 1 Energy Bleed 3 | . . . . . . 3 Interference 1 | . . . . . . 1 Matter Decay 3 | . . . . . 1 2 Short Circuit 4 | . . . . . . 4 Damage (minor) 4 | . . . . . . 4 Damage (major) 12 | . . . . . . 12 Damage (core) 1 | . . . . . . 1 Siege Activations . | . . . . . . . Robots Corrupted . | . . . . . . . Combat Hostiles . | . . . . . . . Parts Fried . | . . . . . . . Impact Corruptions . | . . . . . . . Robots Melted . | . . . . . . . Combat Hostiles . | . . . . . . . Parts Melted 1 | . 1 . . . . . Heat Transferred 650 | 125 400 . . 125 . . Parts Sabotaged . | . . . . . . . Parts Stolen . | . . . . . . . Parts Stripped . | . . . . . . . Power Chain Reactions . | . . . . . . . Missiles Intercepted . | . . . . . . . Alert | -11 -10 -10 -10 -9 -8 -7 ------- Run | Scr Mat Min Exi Min Mat Fac Peak Influence 512 | 20 125 48 . 70 512 321 Initial 224 | . 13 48 . . . 224 Average 116 | 3 64 48 . 17 232 217 Maximum Alert Level 2 | . . . . . 2 1 Low Security (%) 65 | 100 100 100 . 100 28 11 Level 1 33 | . . . . . 67 88 Level 2 1 | . . . . . 3 . Level 3 . | . . . . . . . Level 4 . | . . . . . . . Level 5 . | . . . . . . . High Security . | . . . . . . . Max Security . | . . . . . . . Squads Dispatched 11 | . 2 . . . 5 4 Investigation 5 | . 1 . . . 2 2 Extermination 1 | . . . . . . 1 Reinforcement 4 | . 1 . . . 3 . Assault . | . . . . . . . Garrison 1 | . . . . . . 1 Intercept . | . . . . . . . Searches Triggered . | . . . . . . . Construction Impeded 1 | . . . . . 1 . Haulers Reinforced . | . . . . . . . Active Scanning Responses . | . . . . . . . Cargo Convoy Interrupts . | . . . . . . . Stealth | -11 -10 -10 -10 -9 -8 -7 --------- Run | Scr Mat Min Exi Min Mat Fac Distress Signals 4 | . . . . . 4 . Communications Jammed . | . . . . . . . Distress Signals . | . . . . . . . Times Spotted 51 | 1 7 . . 3 32 8 Peak Tracking Total 4 | 1 3 . . 3 4 3 Tactical Retreats 5 | . . . . . 5 . Traps | -11 -10 -10 -10 -9 -8 -7 ------- Run | Scr Mat Min Exi Min Mat Fac Traps Triggered 1 | . 1 . . . . . Indirectly . | . . . . . . . Trap Hack Attempts . | . . . . . . . Triggered . | . . . . . . . Disarmed . | . . . . . . . Reprogrammed . | . . . . . . . Reused . | . . . . . . . Traps Extracted . | . . . . . . . Installed . | . . . . . . . Triggered . | . . . . . . . Machines | -11 -10 -10 -10 -9 -8 -7 ---------- Run | Scr Mat Min Exi Min Mat Fac Machines Disabled 5 | . . . . . 5 . Max in Single Turn 1 | . . . . . 1 . Machines Sabotaged . | . . . . . . . Garrisons Compromised . | . . . . . . . Overloaded Fab Kills . | . . . . . . . Hacking | -11 -10 -10 -10 -9 -8 -7 --------- Run | Scr Mat Min Exi Min Mat Fac Machines Accessed 10 | . 2 . . 1 5 2 Terminals 5 | . 1 . . . 2 2 Fabricators . | . . . . . . . Repair Stations 2 | . . . . . 2 . Recycling Units 2 | . 1 . . . 1 . Scanalyzers . | . . . . . . . Garrison Access . | . . . . . . . Total Hacks 38 | . 6 . . 1 22 9 Successful 22 | . 2 . . 1 14 5 Failed 16 | . 4 . . . 8 4 Catastrophic 2 | . . . . . 2 . Database Lockouts . | . . . . . . . Manual . | . . . . . . . Terminals 25 | . 3 . . . 13 9 Fabricators . | . . . . . . . Repair Stations 7 | . . . . . 7 . Recycling Units 5 | . 3 . . . 2 . Scanalyzers . | . . . . . . . Garrison Access . | . . . . . . . Terminal Hacks 16 | . 1 . . 1 9 5 Record 7 | . 1 . . . 6 . Robot Analysis 1 | . . . . . . 1 Prototype ID Bank 2 | . . . . . 1 1 Open Door 1 | . . . . 1 . . Open DSF 1 | . . . . . . 1 Emergency Access Points 1 | . . . . . . 1 Alert Level 1 | . . . . . . 1 Surveillance Status 1 | . . . . . 1 . Reinforcement Status 1 | . . . . . 1 . Fabricator Hacks . | . . . . . . . Repair Station Hacks 5 | . . . . . 5 . Scan Component 3 | . . . . . 3 . Repair 2 | . . . . . 2 . Recycling Unit Hacks 1 | . 1 . . . . . Retrieve Matter 1 | . 1 . . . . . Scanalyzer . | . . . . . . . Garrison Access Hacks . | . . . . . . . Unauthorized Hacks . | . . . . . . . Terminals . | . . . . . . . Fabricators . | . . . . . . . Repair Stations . | . . . . . . . Recycling Units . | . . . . . . . Scanalyzers . | . . . . . . . Garrison Access . | . . . . . . . Data Cores Recovered . | . . . . . . . Used . | . . . . . . . Hacking Detections 9 | . 2 . . . 5 2 Full Trace Events 9 | . 2 . . . 5 2 Feedback Events . | . . . . . . . Feedback Blocked . | . . . . . . . Robot Schematics Acquired . | . . . . . . . Robots Built . | . . . . . . . Authchips . | . . . . . . . Time . | . . . . . . . Total Robot Build Rating . | . . . . . . . Part Schematics Acquired . | . . . . . . . Parts Built . | . . . . . . . Authchips . | . . . . . . . Time . | . . . . . . . Total Part Build Rating . | . . . . . . . Parts Repaired 2 | . . . . . 2 . Time 99 | . . . . . 99 . Parts Recycled . | . . . . . . . Recycled Matter . | . . . . . . . Retrieved Matter 85 | . 85 . . . . . Retrieved Components . | . . . . . . . Parts Scanalyzed . | . . . . . . . Part Schematics Acquired . | . . . . . . . Parts Damaged . | . . . . . . . Bothacking | -11 -10 -10 -10 -9 -8 -7 ------------ Run | Scr Mat Min Exi Min Mat Fac Used RIF Installer . | . . . . . . . Robots Hacked . | . . . . . . . Non-combat . | . . . . . . . Combat . | . . . . . . . Robot Hacks Applied . | . . . . . . . Relay Couplers Released . | . . . . . . . Fabnet Peak Effective % . | . . . . . . . Robots Rewired . | . . . . . . . Allies Hacked . | . . . . . . . Hacks Repelled . | . . . . . . . Allies | -11 -10 -10 -10 -9 -8 -7 -------- Run | Scr Mat Min Exi Min Mat Fac Total Allies 3 | . . . . 3 . . Largest Group 3 | . . . . 3 3 . Highest-Rated Group 40 | . . . . 40 40 . Highest-Rated Ally 16 | . . . . 16 16 . Total Orders 10 | . . . . 10 . . ROAM 2 | . . . . 2 . . FOLLOW 7 | . . . . 7 . . GUARD 1 | . . . . 1 . . Ally Attacks 16 | . . . . . 16 . Total Damage 174 | . . . . . 174 . Kills 1 | . . . . . 1 . Allies Corrupted . | . . . . . . . Allies Melted . | . . . . . . . Intel | -11 -10 -10 -10 -9 -8 -7 ------- Run | Scr Mat Min Exi Min Mat Fac Robot Analysis Total 1 | . . . . . . 1 Derelict Logs Recovered 1 | . . . . 1 . . Drone Launches . | . . . . . . . Drone Recoveries . | . . . . . . . Exploration | -11 -10 -10 -10 -9 -8 -7 ------------- Run | Scr Mat Min Exi Min Mat Fac Turns Passed 3066 | 85 323 48 46 1211 899 454 Spaces Moved 1699 | 63 218 41 35 748 384 210 Core 17 | 17 . . . . . . Treads . | . . . . . . . Legs 1682 | 46 218 41 35 748 384 210 Wheels . | . . . . . . . Hover . | . . . . . . . Flight . | . . . . . . . Fastest Speed 50 | 50 120 120 120 120 120 120 Average Speed 157 | 101 120 120 120 152 192 183 Slowest Speed 260 | 120 120 120 120 190 260 260 Overloaded Moves . | . . . . . . . Propulsion Burnouts . | . . . . . . . Robots Hopped . | . . . . . . . Cave-ins Triggered . | . . . . . . . Exploration Rate (%) 26 | 9 37 15 9 75 31 6 Regions Visited 6 Branch Regions 3 Pre-discovered Areas 1 | . . . . 1 . . Known Exits Taken 1 | . . . . . 1 . Unknown Exits Taken 5 | 1 1 1 1 1 . . Scrap Searched 2 | . . . . 2 . . Spaces Dug 15 | . . . . . 15 . Terrain Destroyed 140 | . . . . 1 133 6 Melee . | . . . . . . . Projectile 29 | . . . . 1 22 6 AOE 111 | . . . . . 111 . Terrain Rammed . | . . . . . . . Walls Destroyed . | . . . . . . . Machines Disabled . | . . . . . . . Actions | -11 -10 -10 -10 -9 -8 -7 --------- Run | Scr Mat Min Exi Min Mat Fac Total 1905 | 76 247 40 40 785 475 242 Wait 37 | . 2 . . 1 30 4 Move 1693 | 62 217 40 34 747 383 210 Hop . | . . . . . . . Pick Up 36 | 5 7 . 2 8 9 5 Fast Attach 4 | . . . 1 . 1 2 Attach 22 | 5 3 . . 1 11 2 Detach 4 | . 1 . . . 3 . Swap 3 | . . . . 2 1 . Drop 16 | . . . 3 9 2 2 Fire 88 | 4 16 . . 17 34 17 Melee . | . . . . . . . Ram . | . . . . . . . Kick 2 | . 1 . . . 1 . Crush . | . . . . . . . Escape Stasis . | . . . . . . . Rewire . | . . . . . . . Trap . | . . . . . . . Miscellaneous . | . . . . . . . Route ------- -11/Scrapyard -10/Materials (discovered 3 exits: [*Mat] / [*Min x2]) -10/Mines -10/Exiles -9/Mines -8/Materials -7/Factory (discovered 1 exit: [*Low]) History --------- Turn | Location | Event 2 | -11/Scrapyard | Met Revision 17 54 | -11/Scrapyard | Discovered new exit (range 8) 86 | -11/Scrapyard | Entered Materials 145 | -10/Materials | Discovered new exit (range 16) 171 | -10/Materials | Met 8R-AWN 201 | -10/Materials | Discovered new exit (range 3) 227 | -10/Materials | Discovered new exit (range 16) 306 | -10/Materials | Build established: Mutant 409 | -10/Materials | Entered Mines 411 | -10/Mines | Followed 8R-AWN into the Mines 439 | -10/Mines | Discovered new exit (range 14) 457 | -10/Mines | Entered Exiles 490 | -10/Exiles | Discovered new exit (range 14) 503 | -10/Exiles | Entered Mines 515 | -9/Mines | Met a Derelict bent on vengeance 559 | -9/Mines | Learned location of Zion (-7) 646 | -9/Mines | Assisted by bots powering up and referring to "LRC-V3" 926 | -9/Mines | Met a Derelict who couldn't figure out how to use a Trap Extractor 1583 | -9/Mines | Discovered new exit (range 9) 1714 | -9/Mines | Entered Materials 1714 | -8/Materials | Accompanied by 3 allies 1714 | -8/Materials | Evolved 4 slots: Propulsion x1, Utility x2, Weapon x1 1916 | -8/Materials | Repaired Corrupted Imp. Carbon-fiber Leg? 2058 | -8/Materials | Repaired Lgt. Deuterium Engine 2573 | -8/Materials | Discovered new exit (range 16) 2611 | -8/Materials | Identified exit to Factory 2613 | -8/Materials | Entered Factory 2613 | -7/Factory | Evolved 2 slots: Power x1, Propulsion x1 2719 | -7/Factory | Discovered new exit (range 14) 2883 | -7/Factory | Build established: Tank 2997 | -7/Factory | Garrison activated, responded to threat 3067 | -7/Factory | Self-destructed Last Messages --------------- Adv. Assault Cannon temporarily disabled. Overheating: Core damaged (-91). Adv. Assault Cannon broken. Overheating: Short circuit. Hrd. Heavy Armor Plating destroyed. Overheating: Aluminum Leg damaged (-25). Overheating: Imp. Signal Interpreter damaged (-9). Overheating: Broken Lrn. Tractor Beam damaged (-5). Overheating: Carbon-fiber Leg damaged (-27). Carbon-fiber Leg destroyed. Overheating: Matter decay (-30). Overheating: Energy bleed (-13). Overheating: Adv. Assault Cannon damaged (-6). Critical hit (Destroy). Adv. Assault Cannon destroyed. Aluminum Leg destroyed. Broken Lrn. Tractor Beam destroyed. Broken Adv. Assault Cannon destroyed. U-05 Engineer builds a Wall. Acquired 20 matter. Map ----- +----------------------------------------------------+ | ?????????????????????????????????????????? | | ?????????????????????????????????????????? | | ?????????????????????????????????????????? | | ?????????????????????????????????????????? | | ?????????????????????????????????????????? | | ?????????????????????????????????????????? | | ?????????????????????????????????????????? | | ?????????????????????????????????????????? | | ?????????????????????????????????????????? | | ?????????????????????????????????????????? | | ?????????????????#???????????????????????? | | ???????????????? #???????????????????????? | | ???????????##??# ##??????????????????????? | | ?????????##%#? ???????????????????????? | | ???????###"!## ?????????????????????????? | | ???????+ =^^[% ?????????????????H????????? | | ???????#*%*%"#???????????????????????????? | | ????#+## [![#????????????????????????????? | | ????# %[%#????????????????????????????? | | ????# %[#????????????????????????????? | | ????# !!!*%#????????????????????????????? | | ????# !!! ##?????###???????????????????? | | ???## !!!s #######T ###########?????????? | | ???## ???????? | | ???## ???????? | | ????# Y @ ???????? | | ????# ########################????????? | | ????# #???????????????????????????????? | | ???##+## #???????????????????????????????? | | # # ###########?????????????????????? | | ?# # +?????????????????????? | | ?# [ # #?????????????????????? | | ?# # """" #?????????????????????? | | ?# + """" +?????????????????????? | | ?# !! # """" ###?????????????????????? | | ?# !! # #???????????????????????? | | ?# ! # """" #???????????????????????? | | ?####### """" #???????????????????????? | | ####### """" ?????????????????????? | | # + ???????????????????? | | # # ??????????????????? | | # % # #####???????????????????? | | # # ###########????????????????????? | | # # + """T""" #???????####?????????? | | # + # """ """ #??????? #?????????? | | # ! # # #??????? #?????????? | | # ## # """ """ #?????? #?????????? | | # ## # """ """ #?###### #?????????? | | # ## + """ """ #? # #?????? | | # ##### #?""" !# +?????? | +----------------------------------------------------+ Best States ------------- Heat Dissipation 34 Energy Generation 14 Energy Capacity 160 Matter Stores 350 Matter Capacity 350 Sight Range 16 Terrain Scan Density 10 ECM Strength 2 Armor Coverage 600 Evasion (%) 55 Recoil Reduction 1 Item Schematics ----------------- None Robot Schematics ------------------ None Fabricated ------------ Nothing Alien Tech Used ----------------- None Achievements -------------- Loot Pinata Made in Tau Ceti IV Novice Programmer Tourist Troublemaker Use The Force Challenges ------------ None Game ------ Seed RocketMiningScrap Manual? 0 Play Time 00:34:22 Cumulative 1.2 hours Start 2022.04.07 @ 23:21:59 End 2022.04.07 @ 23:56:41 Sessions 1 Manual Loads 0 Difficulty Rogue Special Mode None Game No. 2 Rogue 2 Adventurer 0 Explorer 0 Win Type - Total 0 Types 0/0/0/0/0/0/0/0/0 Lore% 1 Gallery% 2 Achievement% 4 Wizard Run 0 Options --------- ASCII 0 Keyboard 0 Movement Mouse Keybinds 0 Fullscreen 1 Font 18/SmallcapsGlow Map View 76x50 Tactical HUD 0 Map Filters NONE Filters NONE Steam 0 RUN: 1f449127-f6b6-4ae1-99b6-d1d754075d4b